[Event "EYCC Girls-U10 2019"]
[Site "Bratislava"]
[Date "2019.08.10"]
[Round "9.2"]
[White "Hnatyshyn, Anastasiia"]
[Black "Fedorova, Olesya"]
[Result "1-0"]
[ECO "B39"]
[WhiteElo "1380"]
[BlackElo "1516"]
[Annotator "NA"]
[PlyCount "95"]
[EventDate "2019.08.02"]
[EventType "swiss"]
[EventCountry "SVK"]
[SourceTitle "playchess.com"]
[Source "ChessBase"]
[SourceQuality "1"]
[TimeControl "40/5400+30:1800+30"]

1. e4 {[%emt 0:00:00]} c5 {[%emt 0:00:00]} 2. Nf3 {[%emt 0:00:00]} Nc6 {[%emt 0:00:00]} 3. c4 {[%emt 0:00:00]} g6 {[%emt 0:00:18]} 4. d4 {[%emt 0:00:23]} cxd4 {[%emt 0:00:40]} 5. Nxd4 {[%emt 0:00:10]} Bg7 {[%emt 0:00:10]} 6. Be3 {[%emt 0:00:27]} Nf6 {[%emt 0:00:32]} 7. Nc3 {[%emt 0:00:08]} Ng4 {[%emt 0:04:42]} 8. Qxg4 {[%emt 0:00:28]} Nxd4 {[%emt 0:00:09]} 9. Qd1 {[%emt 0:00:51]} Ne6 {[%emt 0:03:18]} 10. Be2 {[%emt 0:02:29]} O-O {[%emt 0:02:01]} 11. O-O {[%emt 0:00:51]} d6 {[%emt 0:01:46]} 12. Qd2 Bd7 {[%emt 0:02:43]} 13. Rfd1 {[%emt 0:07:19]} Bc6 {[%emt 0:01:41]} 14. Nd5 {[%emt 0:03:30]} Nc5 {[%emt 0:08:29]} 15. f3 {[%emt 0:01:52]} Na4 {[%emt 0:06:40]} 16. Rab1 {[%emt 0:03:17]} b6 {[%emt 0:06:31]} 17. Bd4 {[%emt 0:06:15]} Bxd5 {[%emt 0:06:44]} 18. Bxg7 {[%emt 0:02:10]} Kxg7 {[%emt 0:00:24]} 19. cxd5 {[%emt 0:00:06]} Nc5 {[%emt 0:00:24]} 20. b4 {[%emt 0:00:14]} Nd7 {[%emt 0:00:30]} 21. Bb5 {[%emt 0:02:33]} Kg8 {[%emt 0:04:11]} 22. Rdc1 {[%emt 0:03:10]} a6 {[%emt 0:02:24]} 23. Bc6 {[%emt 0:00:52]} Ra7 {[%emt 0:00:25]} 24. Bxd7 {[%emt 0:00:38]} Qxd7 {[%emt 0:00:18]} 25. Rc6 {[%emt 0:00:11]} b5 {[%emt 0:02:14]} 26. Rbc1 {[%emt 0:02:53]} Qb7 {[%emt 0:03:33]} 27. Qc3 {[%emt 0:01:46]} Rfa8 {[%emt 0:04:33]} 28. e5 {[%emt 0:06:26]} dxe5 {[%emt 0:05:13]} 29. Qxe5 {[%emt 0:00:06]} a5 {[%emt 0:01:57]} 30. bxa5 {[%emt 0:00:51]} Rxa5 {[%emt 0:00:39]} 31. Rc7 {[%emt 0:00:10]} Qb6+ {[%emt 0:00:24]} 32. Kh1 {[%emt 0:00:39]} Qf6 {[%emt 0:05:43]} 33. Qxf6 {[%emt 0:02:45]} exf6 {[%emt 0:00:12]} 34. d6 {[%emt 0:00:03]} Rd8 {[%emt 0:01:43]} 35. Rc8 {[%emt 0:00:56]} Rxc8 {[%emt 0:01:11]} 36. Rxc8+ {[%emt 0:00:09]} Kg7 {[%emt 0:00:02]} 37. d7 {[%emt 0:00:10]} Rxa2 {[%emt 0:00:06]} 38. h3 {[%emt 0:00:06]} Rd2 {[%emt 0:00:27]} 39. d8=Q {[%emt 0:00:06]} Rxd8 {[%emt 0:00:04]} 40. Rxd8 {[%emt 0:00:00]} b4 {[%emt 0:00:00]} 41. Rb8 {[%emt 0:00:21]} g5 {[%emt 0:00:08]} 42. Rxb4 {[%emt 0:00:04]} f5 {[%emt 0:00:05]} 43. g4 {[%emt 0:00:05]} f4 {[%emt 0:00:04]} 44. h4 h6 {[%emt 0:00:12]} 45. hxg5 {[%emt 0:00:19]} hxg5 {[%emt 0:00:04]} 46. Kg2 {[%emt 0:00:08]} f6 {[%emt 0:00:03]} 47. Kf2 {[%emt 0:00:08]} Kg6 {[%emt 0:00:03]} 48. Rb5 {[%emt 0:00:07]} 1-0

[Event "EYCC Girls-U10 2019"]
[Site "Bratislava"]
[Date "2019.08.10"]
[Round "9.3"]
[White "Kirtadze, Anastasia"]
[Black "Stoll, Lucia"]
[Result "1-0"]
[ECO "E06"]
[WhiteElo "1532"]
[BlackElo "1403"]
[Annotator "NA"]
[PlyCount "103"]
[EventDate "2019.08.02"]
[EventType "swiss"]
[EventCountry "SVK"]
[SourceTitle "playchess.com"]
[Source "ChessBase"]
[SourceQuality "1"]
[TimeControl "40/5400+30:1800+30"]

1. d4 {[%emt 0:00:00]} d5 {[%emt 0:00:00]} 2. c4 {[%emt 0:00:00]} e6 {[%emt 0:00:00]} 3. Nf3 {[%emt 0:00:04]} Nf6 {[%emt 0:00:00]} 4. g3 {[%emt 0:00:12]} Be7 {[%emt 0:00:02]} 5. Bg2 {[%emt 0:00:23]} O-O {[%emt 0:00:12]} 6. O-O {[%emt 0:00:06]} dxc4 {[%emt 0:00:18]} 7. Ne5 {[%emt 0:00:11]} Nc6 {[%emt 0:00:22]} 8. Bxc6 {[%emt 0:00:41]} bxc6 {[%emt 0:00:08]} 9. Nxc6 {[%emt 0:00:17]} Qe8 {[%emt 0:00:23]} 10. Nxe7+ {[%emt 0:00:36]} Qxe7 {[%emt 0:00:11]} 11. Qa4 {[%emt 0:01:08]} e5 {[%emt 0:00:34]} 12. dxe5 {[%emt 0:01:48]} Qxe5 {[%emt 0:00:09]} 13. Qxc4 {[%emt 0:01:23]} Be6 {[%emt 0:01:28]} 14. Qd3 {[%emt 0:27:46]} Bh3 {[%emt 0:02:00]} 15. Re1 {[%emt 0:01:02]} Rad8 {[%emt 0:01:49]} 16. Qf3 {[%emt 0:01:16]} Bg4 {[%emt 0:19:33]} 17. Qg2 {[%emt 0:01:54]} Qxe2 {[%emt 0:16:37]} 18. Rxe2 {[%emt 0:00:30]} Rd1+ {[%emt 0:00:06]} 19. Qf1 {[%emt 0:00:10]} Bxe2 {[%emt 0:00:10]} 20. Qxd1 {[%emt 0:00:07]} Bxd1 {[%emt 0:00:08]} 21. Nc3 {[%emt 0:00:34]} Bf3 {[%emt 0:01:11]} 22. Bf4 {[%emt 0:00:47]} c6 {[%emt 0:01:00]} 23. Re1 {[%emt 0:04:07]} Rd8 {[%emt 0:05:15]} 24. Re3 {[%emt 0:22:21]} Bd5 {[%emt 0:00:50]} 25. Bg5 {[%emt 0:01:26]} Re8 {[%emt 0:01:06]} 26. Bxf6 {[%emt 0:04:54]} Rxe3 {[%emt 0:00:12]} 27. fxe3 {[%emt 0:00:04]} gxf6 {[%emt 0:00:09]} 28. Nxd5 {[%emt 0:02:53]} cxd5 {[%emt 0:00:03]} 29. Kf2 {[%emt 0:00:48]} Kf8 {[%emt 0:01:08]} 30. Ke2 {[%emt 0:00:40]} Kg7 {[%emt 0:00:23]} 31. Kd3 {[%emt 0:01:13]} Kg6 {[%emt 0:00:32]} 32. Kd4 {[%emt 0:05:37]} Kf5 {[%emt 0:01:03]} 33. Kxd5 {[%emt 0:06:25]} Kg4 {[%emt 0:00:22]} 34. b4 {[%emt 0:00:31]} Kh3 {[%emt 0:00:16]} 35. Ke4 {[%emt 0:00:39]} Kg4 {[%emt 0:01:07]} 36. b5 {[%emt 0:00:24]} f5+ {[%emt 0:00:12]} 37. Ke5 {[%emt 0:01:26]} Kf3 {[%emt 0:00:53]} 38. a4 {[%emt 0:00:29]} Kxe3 {[%emt 0:00:26]} 39. a5 {[%emt 0:00:13]} f6+ {[%emt 0:00:41]} 40. Kxf5 {[%emt 0:00:00]} h5 {[%emt 0:00:00]} 41. b6 {[%emt 0:00:34]} a6 {[%emt 0:00:57]} 42. b7 {[%emt 0:00:04]} Kd4 {[%emt 0:00:22]} 43. b8=Q {[%emt 0:00:10]} Kd3 {[%emt 0:00:16]} 44. Qb6 {[%emt 0:00:05]} h4 {[%emt 0:00:28]} 45. gxh4 {[%emt 0:00:04]} Kc4 {[%emt 0:00:12]} 46. h5 {[%emt 0:00:06]} Kd3 {[%emt 0:00:20]} 47. h6 {[%emt 0:00:06]} Ke2 {[%emt 0:00:15]} 48. h7 {[%emt 0:00:06]} Kf3 {[%emt 0:00:08]} 49. h8=Q {[%emt 0:00:24]} Kg2 {[%emt 0:00:07]} 50. Qg7+ {[%emt 0:00:04]} Kf1 {[%emt 0:00:19]} 51. Qb2 {[%emt 0:00:16]} Ke1 {[%emt 0:00:12]} 52. Qg1# {[%emt 0:00:06]} 1-0

[Event "EYCC Girls-U10 2019"]
[Site "Bratislava"]
[Date "2019.08.10"]
[Round "9.4"]
[White "Kusakina, Uliana"]
[Black "Toth, Lili"]
[Result "1-0"]
[ECO "C54"]
[WhiteElo "1364"]
[BlackElo "2199"]
[Annotator "NA"]
[PlyCount "137"]
[EventDate "2019.08.02"]
[EventType "swiss"]
[EventCountry "SVK"]
[SourceTitle "playchess.com"]
[Source "ChessBase"]
[SourceQuality "1"]
[TimeControl "40/5400+30:1800+30"]

1. e4 {[%emt 0:00:00]} e5 {[%emt 0:00:00]} 2. Nf3 {[%emt 0:00:00]} Nc6 {[%emt 0:00:10]} 3. Bc4 {[%emt 0:00:03]} Bc5 {[%emt 0:00:22]} 4. c3 {[%emt 0:00:23]} Nf6 {[%emt 0:00:32]} 5. d4 {[%emt 0:00:13]} exd4 {[%emt 0:00:38]} 6. e5 {[%emt 0:00:16]} d5 {[%emt 0:00:52]} 7. Bb5 {[%emt 0:00:13]} Ne4 {[%emt 0:01:10]} 8. cxd4 {[%emt 0:00:13]} Bb6 {[%emt 0:01:00]} 9. Nc3 {[%emt 0:00:15]} Bg4 {[%emt 0:01:31]} 10. Be3 {[%emt 0:01:22]} O-O {[%emt 0:04:17]} 11. O-O {[%emt 0:05:14]} Bxf3 {[%emt 0:06:48]} 12. gxf3 {[%emt 0:00:39]} Ng5 {[%emt 0:01:50]} 13. Kh1 {[%emt 0:02:02]} Ne6 {[%emt 0:14:43]} 14. Bxc6 {[%emt 0:03:18]} bxc6 {[%emt 0:00:07]} 15. Rg1 {[%emt 0:01:44]} f6 {[%emt 0:02:09]} 16. f4 {[%emt 0:02:51]} fxe5 {[%emt 0:07:31]} 17. fxe5 {[%emt 0:04:26]} Qh4 {[%emt 0:01:46]} 18. Rg4 {[%emt 0:01:00]} Qh3 {[%emt 0:01:10]} 19. Rg3 {[%emt 0:05:31]} Qf5 {[%emt 0:02:35]} 20. Qd2 {[%emt 0:02:28]} Kh8 {[%emt 0:07:13]} 21. Rag1 {[%emt 0:03:16]} g6 {[%emt 0:05:38]} 22. a3 {[%emt 0:06:10]} Rf7 {[%emt 0:07:22]} 23. Rg4 {[%emt 0:13:10]} Qf3+ {[%emt 0:05:46]} 24. R1g2 {[%emt 0:00:31]} Rd8 {[%emt 0:07:08]} 25. Kg1 {[%emt 0:00:54]} Rff8 {[%emt 0:03:09]} 26. R2g3 {[%emt 0:03:45]} Qf7 {[%emt 0:01:10]} 27. Bg5 {[%emt 0:02:11]} Nxg5 {[%emt 0:01:36]} 28. Rxg5 {[%emt 0:02:11]} Qf4 {[%emt 0:01:20]} 29. Qxf4 {[%emt 0:06:12]} Rxf4 {[%emt 0:00:10]} 30. Ne2 {[%emt 0:00:11]} Re4 {[%emt 0:04:14]} 31. Re3 {[%emt 0:00:29]} Bxd4 {[%emt 0:04:37]} 32. Rxe4 {[%emt 0:00:16]} dxe4 {[%emt 0:00:27]} 33. Nxd4 {[%emt 0:00:08]} Rxd4 {[%emt 0:00:13]} 34. e6 {[%emt 0:00:28]} Kg7 {[%emt 0:02:41]} 35. e7 {[%emt 0:01:25]} Kf7 {[%emt 0:00:31]} 36. Re5 {[%emt 0:00:10]} Ke8 {[%emt 0:00:20]} 37. Re6 {[%emt 0:00:29]} Rd7 {[%emt 0:02:38]} 38. Rxe4 {[%emt 0:00:30]} Rxe7 {[%emt 0:00:11]} 39. Ra4 {[%emt 0:00:38]} Kd7 {[%emt 0:01:52]} 40. Rxa7 {[%emt 0:00:00]} Re1+ {[%emt 0:00:00]} 41. Kg2 {[%emt 0:00:17]} Rb1 {[%emt 0:01:24]} 42. b4 {[%emt 0:00:12]} Re1 {[%emt 0:03:56]} 43. Ra8 {[%emt 0:02:21]} Re8 {[%emt 0:01:38]} 44. Rxe8 {[%emt 0:01:23]} Kxe8 {[%emt 0:00:05]} 45. a4 {[%emt 0:00:06]} Kd8 {[%emt 0:00:31]} 46. a5 {[%emt 0:00:18]} Kc8 {[%emt 0:00:06]} 47. Kf3 {[%emt 0:00:44]} Kb7 {[%emt 0:00:22]} 48. h4 {[%emt 0:10:35]} Ka6 {[%emt 0:05:53]} 49. Ke4 {[%emt 0:01:17]} Kb5 {[%emt 0:01:07]} 50. Kd4 {[%emt 0:00:55]} c5+ {[%emt 0:01:08]} 51. bxc5 {[%emt 0:00:22]} Kxa5 {[%emt 0:04:49]} 52. f4 {[%emt 0:03:22]} c6 {[%emt 0:08:25]} 53. Kc4 {[%emt 0:03:13]} h5 54. Kd4 {[%emt 0:02:41]} Kb4 {[%emt 0:02:11]} 55. Ke5 {[%emt 0:00:06]} Kxc5 {[%emt 0:02:06]} 56. Kf6 {[%emt 0:00:07]} Kb5 57. Kxg6 c5 {[%emt 0:00:38]} 58. f5 {[%emt 0:00:39]} c4 {[%emt 0:00:03]} 59. f6 {[%emt 0:00:28]} c3 {[%emt 0:00:06]} 60. f7 {[%emt 0:00:15]} c2 {[%emt 0:00:12]} 61. f8=Q {[%emt 0:00:40]} c1=Q {[%emt 0:00:10]} 62. Qb8+ {[%emt 0:00:52]} Ka6 {[%emt 0:00:27]} 63. Qd6+ {[%emt 0:00:16]} Kb5 {[%emt 0:00:41]} 64. Kxh5 {[%emt 0:00:20]} Qe3 {[%emt 0:01:11]} 65. Qd5+ {[%emt 0:00:53]} Kb6 {[%emt 0:01:10]} 66. Qd7 {[%emt 0:06:09] Kb5 Qd6 Kc6 Qf6+ Kd7 Qf5+ Kd6 Qf6+ Kd7 Kg6} Qe4 {[%emt 0:02:20]} 67. Kh6 {[%emt 0:01:53]} Qe3+ {[%emt 0:00:59] Qg5 Qe6+} 68. Kg7 {[%emt 0:37:30] Ke8 Qh5+ Ke7} Qc5 {[%emt 0:00:00] Kd7} 69. Qa7+ {[%emt 0:00:42] Ke8 Qb8+ Kd7 Qb5+ Ke7 Qg5+ Ke8 Kh8 Kd7 Qg7+ Kd6 Kh7 Kc5} 1-0

[Event "EYCC Girls-U10 2019"]
[Site "Bratislava"]
[Date "2019.08.10"]
[Round "9.5"]
[White "Sidorenja, Milena"]
[Black "Zavivaeva, Evelina"]
[Result "1-0"]
[ECO "A45"]
[WhiteElo "1573"]
[BlackElo "1302"]
[Annotator "NA"]
[PlyCount "119"]
[EventDate "2019.08.02"]
[EventType "swiss"]
[EventCountry "SVK"]
[SourceTitle "playchess.com"]
[Source "ChessBase"]
[SourceQuality "1"]
[TimeControl "40/5400+30:1800+30"]

1. d4 {[%emt 0:00:00]} Nf6 {[%emt 0:00:00]} 2. c3 {[%emt 0:00:00]} d5 {[%emt 0:00:19]} 3. Nf3 {[%emt 0:00:04]} Bf5 4. Qb3 b6 5. Bf4 e6 6. e3 Bd6 7. Ne5 O-O 8. Be2 c6 9. Nd2 Qc7 {[%emt 0:18:44]} 10. c4 Nbd7 11. Nxd7 Nxd7 12. Bxd6 Qxd6 13. O-O Rac8 14. Qa4 Qc7 15. Rac1 Qb7 16. cxd5 {[%emt 0:42:23]} Nb8 17. dxc6 Qe7 18. Rc3 Rc7 19. Rfc1 Rfc8 20. b4 a6 21. Bxa6 Nxa6 22. Qxa6 Qxb4 23. Nc4 Rxc6 24. Nxb6 Rxc3 25. Qxc8+ Rxc8 26. Rxc8+ Qf8 27. Rxf8+ Kxf8 28. a4 Ke7 29. a5 Bd3 30. Na4 Bb5 31. Nc5 Kd6 32. a6 Kc7 33. f4 Kb6 34. e4 Bxa6 {[%emt 1:15:06]} 35. Nxa6 {[%emt 0:29:55]} Kxa6 36. Kf2 Kb5 37. Ke3 Kc4 {[%emt 0:00:29]} 38. g4 {[%emt 0:00:47]} h6 39. h4 g6 40. e5 Kc3 41. h5 gxh5 42. gxh5 Kb4 43. Kd3 Kb5 44. Kc3 Kb6 45. Kb4 Kc6 46. Kc4 Kd7 47. Kc5 Kc7 48. d5 exd5 49. Kxd5 Kd7 50. f5 Kd8 51. Kd6 Ke8 52. e6 fxe6 53. Kxe6 Kf8 54. Kf6 Kg8 {[%emt 0:51:23]} 55. Ke7 {[%emt 0:21:38]} Kg7 {[%emt 0:00:40]} 56. f6+ {[%emt 0:00:06]} Kg8 57. f7+ Kh7 58. Kf6 Kh8 59. f8=Q+ Kh7 60. Qg7# 1-0

[Event "EYCC Girls-U10 2019"]
[Site "Bratislava"]
[Date "2019.08.10"]
[Round "9.6"]
[White "Piddubna, Bozhena"]
[Black "Mkrtchyan, Anahit H."]
[Result "0-1"]
[ECO "A15"]
[WhiteElo "1444"]
[BlackElo "1155"]
[Annotator "NA"]
[PlyCount "70"]
[EventDate "2019.08.02"]
[EventType "swiss"]
[EventCountry "SVK"]
[SourceTitle "playchess.com"]
[Source "ChessBase"]
[SourceQuality "1"]
[TimeControl "40/5400+30:1800+30"]

1. c4 {[%emt 0:01:11]} Nf6 {[%emt 0:00:00]} 2. g3 {[%emt 0:00:12]} e6 {[%emt 0:00:12]} 3. Bg2 {[%emt 0:00:26]} Be7 {[%emt 0:00:34]} 4. Nf3 {[%emt 0:01:09]} Nc6 {[%emt 0:01:40]} 5. O-O {[%emt 0:02:38]} b6 {[%emt 0:00:27]} 6. b3 {[%emt 0:01:32]} Bb7 {[%emt 0:03:25]} 7. Bb2 {[%emt 0:00:14]} O-O {[%emt 0:00:45]} 8. a3 {[%emt 0:01:14]} d6 {[%emt 0:01:35]} 9. Qc2 {[%emt 0:00:24]} Nb8 {[%emt 0:01:31]} 10. Ng5 {[%emt 0:13:42]} Bxg2 {[%emt 0:04:34]} 11. Bxf6 {[%emt 0:00:42]} g6 {[%emt 0:00:22]} 12. Nxe6 {[%emt 0:00:46]} fxe6 {[%emt 0:00:25]} 13. Bxe7 {[%emt 0:00:07]} Qxe7 {[%emt 0:00:22]} 14. Kxg2 {[%emt 0:00:08]} Nd7 {[%emt 0:01:55]} 15. Nc3 {[%emt 0:00:59]} c5 {[%emt 0:01:12]} 16. f3 {[%emt 0:02:06]} Ne5 {[%emt 0:02:33]} 17. Rh1 {[%emt 0:03:54]} Nc6 {[%emt 0:07:29]} 18. Qd3 {[%emt 0:04:34]} Nd4 {[%emt 0:04:21]} 19. Nb5 {[%emt 0:00:27]} Nxb5 {[%emt 0:04:44]} 20. cxb5 {[%emt 0:00:11]} d5 {[%emt 0:01:40]} 21. h4 {[%emt 0:00:57]} Qf7 {[%emt 0:04:00]} 22. Qe3 {[%emt 0:05:24]} Qf6 {[%emt 0:05:34]} 23. h5 {[%emt 0:02:05]} gxh5 {[%emt 0:02:10]} 24. Rxh5 {[%emt 0:00:21]} Qxa1 {[%emt 0:01:05]} 25. Qxe6+ {[%emt 0:03:24]} Kh8 {[%emt 0:00:15]} 26. Qxd5 {[%emt 0:04:07]} Qd4 {[%emt 0:01:57]} 27. Qb7 {[%emt 0:01:38]} Qg7 {[%emt 0:02:07]} 28. Qe4 {[%emt 0:01:34]} Rfe8 {[%emt 0:01:31]} 29. Qc4 {[%emt 0:04:47]} Rad8 {[%emt 0:01:37]} 30. Qh4 {[%emt 0:03:00]} Rxe2+ {[%emt 0:00:59]} 31. Kf1 {[%emt 0:00:08]} Rdxd2 {[%emt 0:00:14]} 32. Rxh7+ {[%emt 0:00:50]} Qxh7 {[%emt 0:00:17]} 33. Qf6+ {[%emt 0:00:05]} Kg8 {[%emt 0:00:11]} 34. Qg5+ {[%emt 0:00:12]} Qg7 {[%emt 0:00:09]} 35. Qf4 {[%emt 0:00:27]} Qa1# {[%emt 0:00:10]} 0-1

[Event "EYCC Girls-U10 2019"]
[Site "Bratislava"]
[Date "2019.08.10"]
[Round "9.8"]
[White "Arzur, Maia"]
[Black "Zadrapova, Amalie"]
[Result "1-0"]
[ECO "B90"]
[WhiteElo "1507"]
[BlackElo "1248"]
[Annotator "NA"]
[PlyCount "121"]
[EventDate "2019.08.02"]
[EventType "swiss"]
[EventCountry "SVK"]
[SourceTitle "playchess.com"]
[Source "ChessBase"]
[SourceQuality "1"]
[TimeControl "40/5400+30:1800+30"]

1. e4 c5 2. Nf3 d6 3. d4 cxd4 4. Nxd4 Nf6 5. Nc3 a6 6. f3 b5 7. g4 h6 8. h4 e6 9. Be3 Be7 10. Qd2 Bb7 11. Bd3 Nc6 12. O-O-O Nd7 13. Rdg1 Nc5 14. Nxc6 Bxc6 15. Be2 b4 16. Nd1 a5 17. g5 h5 18. Nf2 d5 19. e5 a4 20. Bd4 b3 21. cxb3 axb3 22. a3 Rc8 23. Kb1 Na4 24. Nd3 Bd7 25. Rc1 Rxc1+ 26. Rxc1 O-O 27. f4 g6 28. Nc5 Nxc5 29. Bxc5 Bxc5 30. Rxc5 Qb8 31. Bd1 Ba4 32. Rc3 Rc8 33. Rxc8+ Qxc8 34. Qc3 Qc4 35. Qxc4 dxc4 36. Kc1 c3 37. bxc3 b2+ 38. Kxb2 Bxd1 39. c4 Kf8 40. Kc3 Ke8 41. Kb4 Kd7 42. Kb5 Kc7 43. a4 Be2 44. a5 Bf3 45. Kc5 Bc6 46. Kb4 Bd7 47. Kc5 Be8 48. Kb4 Kc6 49. c5 Kb7 50. Kc4 Bc6 51. Kc3 Ka6 52. Kb4 Bd7 53. c6 Bxc6 54. Kc5 Bb5 55. Kd6 Kb7 56. Ke7 Kc7 57. Kxf7 Kd7 58. Kxg6 Ke7 59. Kg7 Bd3 60. g6 Ba6 61. Kh8 1-0

[Event "EYCC Girls-U10 2019"]
[Site "Bratislava"]
[Date "2019.08.10"]
[Round "9.9"]
[White "Goriachkina, Oksana"]
[Black "Ismayilova, Khanim"]
[Result "1/2-1/2"]
[ECO "A45"]
[WhiteElo "1417"]
[BlackElo "1265"]
[Annotator "NA"]
[PlyCount "72"]
[EventDate "2019.08.02"]
[EventType "swiss"]
[EventCountry "SVK"]
[SourceTitle "playchess.com"]
[Source "ChessBase"]
[SourceQuality "1"]
[TimeControl "40/5400+30:1800+30"]

1. d4 {[%emt 0:00:00]} Nf6 {[%emt 0:00:00]} 2. Bg5 {[%emt 0:00:00]} Ne4 {[%emt 0:00:00]} 3. Bf4 {[%emt 0:00:00]} d5 {[%emt 0:01:35]} 4. Nd2 {[%emt 0:00:00]} Nxd2 {[%emt 0:05:27]} 5. Qxd2 {[%emt 0:00:00]} Bf5 {[%emt 0:00:01]} 6. Nf3 {[%emt 0:00:45]} e6 {[%emt 0:05:06]} 7. e3 {[%emt 0:02:08]} Bd6 {[%emt 0:03:42]} 8. Bxd6 {[%emt 0:06:42]} Qxd6 {[%emt 0:02:05]} 9. Bd3 {[%emt 0:00:15]} Bg6 {[%emt 0:08:07]} 10. O-O {[%emt 0:02:01]} O-O {[%emt 0:04:37]} 11. Ne5 {[%emt 0:02:47]} Bxd3 {[%emt 0:01:34]} 12. Qxd3 {[%emt 0:00:42]} Nd7 {[%emt 0:00:11]} 13. Nxd7 {[%emt 0:00:38]} Qxd7 14. c4 {[%emt 0:00:40]} c6 {[%emt 0:02:28]} 15. Rac1 {[%emt 0:05:19]} Rac8 {[%emt 0:08:31]} 16. b4 Rfd8 {[%emt 0:04:51]} 17. c5 {[%emt 0:05:19]} a6 18. a4 Qe8 {[%emt 0:07:02]} 19. Qc3 {[%emt 0:14:38]} f6 {[%emt 0:03:48]} 20. Rfe1 {[%emt 0:02:18]} e5 21. Rb1 {[%emt 0:02:04]} exd4 {[%emt 0:05:09]} 22. exd4 {[%emt 0:00:26]} Qd7 {[%emt 0:00:04]} 23. Re3 {[%emt 0:00:31]} Re8 {[%emt 0:00:03]} 24. Rbe1 {[%emt 0:00:10]} Rxe3 {[%emt 0:00:06]} 25. Qxe3 Kf8 {[%emt 0:00:23]} 26. Qd3 {[%emt 0:17:01]} Re8 {[%emt 0:00:44]} 27. Re3 {[%emt 0:00:36]} Rxe3 {[%emt 0:00:06]} 28. fxe3 {[%emt 0:00:30]} Qe6 {[%emt 0:01:23]} 29. Kf2 {[%emt 0:00:37]} f5 {[%emt 0:05:42]} 30. a5 {[%emt 0:14:53]} Qe4 {[%emt 0:01:07]} 31. Qxe4 {[%emt 0:00:33]} fxe4 {[%emt 0:00:02]} 32. Kg3 {[%emt 0:00:13]} Kf7 {[%emt 0:00:04]} 33. Kf4 {[%emt 0:00:24]} Kf6 {[%emt 0:00:05]} 34. h4 {[%emt 0:01:07]} h6 {[%emt 0:02:41]} 35. g4 {[%emt 0:01:36]} g5+ {[%emt 0:00:05]} 36. hxg5+ {[%emt 0:05:53]} hxg5+ {[%emt 0:00:26]} 1/2-1/2

[Event "EYCC Girls-U10 2019"]
[Site "Bratislava"]
[Date "2019.08.10"]
[Round "9.10"]
[White "Prochaieva, Alina"]
[Black "Mgeladze, Kesaria"]
[Result "1-0"]
[ECO "B13"]
[WhiteElo "1247"]
[BlackElo "1294"]
[Annotator "NA"]
[PlyCount "85"]
[EventDate "2019.08.02"]
[EventType "swiss"]
[EventCountry "SVK"]
[SourceTitle "playchess.com"]
[Source "ChessBase"]
[SourceQuality "1"]
[TimeControl "40/5400+30:1800+30"]

1. e4 {[%emt 0:00:00]} c6 {[%emt 0:00:00]} 2. d4 {[%emt 0:00:00]} d5 {[%emt 0:00:00]} 3. exd5 {[%emt 0:00:12]} cxd5 {[%emt 0:00:00]} 4. Bd3 {[%emt 0:00:12]} Nc6 {[%emt 0:00:00]} 5. c3 {[%emt 0:00:06]} Nf6 {[%emt 0:00:00]} 6. h3 {[%emt 0:00:22]} g6 {[%emt 0:00:16]} 7. Qc2 {[%emt 0:00:34]} Qc7 {[%emt 0:00:47]} 8. Nf3 {[%emt 0:10:31]} Bg7 {[%emt 0:01:08]} 9. Bg5 {[%emt 0:07:55]} O-O {[%emt 0:01:16]} 10. O-O {[%emt 0:05:43]} Bd7 {[%emt 0:00:39]} 11. Nbd2 {[%emt 0:07:51]} Rac8 {[%emt 0:00:47]} 12. Rac1 {[%emt 0:11:52]} Na5 {[%emt 0:05:14]} 13. Ne5 {[%emt 0:10:50]} h6 {[%emt 0:08:41]} 14. Bf4 {[%emt 0:06:32]} Qb6 {[%emt 0:04:59]} 15. Rfe1 {[%emt 0:06:41]} Bb5 {[%emt 0:01:14]} 16. Bxb5 {[%emt 0:07:26]} Qxb5 {[%emt 0:00:07]} 17. Re3 {[%emt 0:02:16]} Qe8 {[%emt 0:05:17]} 18. Rce1 {[%emt 0:03:00]} g5 {[%emt 0:06:32]} 19. Bh2 {[%emt 0:02:36]} e6 {[%emt 0:01:10]} 20. Ng6 {[%emt 0:05:39]} Qb5 {[%emt 0:12:33]} 21. Nxf8 {[%emt 0:01:06]} Rxf8 {[%emt 0:01:21]} 22. Be5 {[%emt 0:02:15]} Rc8 {[%emt 0:02:22]} 23. Rf3 {[%emt 0:03:21]} Ne8 {[%emt 0:01:08]} 24. Bxg7 {[%emt 0:01:25]} Nxg7 {[%emt 0:00:07]} 25. Rf6 {[%emt 0:00:41]} Nf5 {[%emt 0:00:55]} 26. Rxf5 {[%emt 0:02:46]} exf5 {[%emt 0:00:12]} 27. Qxf5 {[%emt 0:00:22]} Rf8 {[%emt 0:00:29]} 28. b3 {[%emt 0:00:29]} Qc6 {[%emt 0:01:03]} 29. c4 {[%emt 0:00:51]} dxc4 {[%emt 0:00:55]} 30. Qxa5 {[%emt 0:00:16]} c3 {[%emt 0:00:18]} 31. Nc4 {[%emt 0:00:35]} c2 {[%emt 0:06:19]} 32. Qd2 {[%emt 0:00:42]} Rc8 {[%emt 0:00:20]} 33. Rc1 {[%emt 0:00:13]} b5 {[%emt 0:00:30]} 34. Ne3 {[%emt 0:00:26]} Rd8 {[%emt 0:00:31]} 35. Rxc2 {[%emt 0:00:19]} Qe4 {[%emt 0:00:18]} 36. d5 {[%emt 0:00:33]} Qe5 {[%emt 0:00:24]} 37. Rc1 {[%emt 0:00:33]} Qf4 {[%emt 0:00:25]} 38. Rd1 {[%emt 0:00:29]} Qe5 {[%emt 0:00:17]} 39. d6 {[%emt 0:00:28]} Qe6 {[%emt 0:00:18]} 40. d7 {[%emt 0:00:00]} Qc6 {[%emt 0:00:00]} 41. Qd6 {[%emt 0:01:58]} Qb7 {[%emt 0:01:00]} 42. Nf5 {[%emt 0:01:12]} a6 {[%emt 0:00:25]} 43. Qf6 {[%emt 0:00:36]} 1-0